[Event "TUR-ch Youth U14 2019"]
[Site "Belek"]
[Date "2019.01.21"]
[Round "3"]
[White "Bese, Irem"]
[Black "Ince, Safiye Oyku"]
[Result "0-1"]
[ECO "B25"]
[WhiteElo "1534"]
[BlackElo "1870"]
[Annotator "NA"]
[PlyCount "58"]
[EventDate "2019.01.20"]
[EventType "swiss"]
[EventCountry "TUR"]
[SourceTitle "playchess.com"]
[Source "ChessBase"]
[SourceQuality "1"]
[TimeControl "5400+30"]

1. e4 {[%emt 0:00:30]} c5 {[%emt 0:00:30]} 2. Nc3 {[%emt 0:00:30]} e6 {[%emt 0:00:30]} 3. g3 {[%emt 0:00:30]} Nc6 {[%emt 0:00:30]} 4. Bg2 {[%emt 0:00:30]} g6 {[%emt 0:00:30]} 5. f4 {[%emt 0:00:00]} Bg7 {[%emt 0:00:00]} 6. Nf3 {[%emt 0:00:00]} Nge7 {[%emt 0:00:00]} 7. O-O {[%emt 0:01:30]} O-O {[%emt 0:00:00]} 8. d3 {[%emt 0:00:30]} Rb8 {[%emt 0:00:00]} 9. Be3 {[%emt 0:00:30]} d6 {[%emt 0:00:00]} 10. a4 {[%emt 0:03:30]} a6 {[%emt 0:02:00]} 11. Qd2 {[%emt 0:07:30]} b5 {[%emt 0:01:30] B25: Closed Sicilian: 3 g3, lines without early Be3} 12. axb5 {[%emt 0:00:30]} axb5 {[%emt 0:00:30]} 13. g4 {[%emt 0:00:30]} (13. Rab1 b4 14. Ne2 Bb7 15. Rfd1 e5 16. fxe5 Nxe5 17. Nxe5 Bxe5 18. Bf4 Bg7 19. Rf1 {0-1 (37) Strukova,K (2052)-Nebolsina,V (2220) Sochi 2017}) 13... f5 $146 {[%emt 0:01:30]} ({Predecessor:} 13... b4 14. Nd1 Qc7 15. Nh4 Nd4 16. Kh1 Bd7 17. f5 exf5 18. gxf5 Nec6 {0-1 (60) Lessmann,S (1604)-Walow,X (1778) Willingen 2018}) 14. h3 {[%emt 0:03:30]} Nd4 {[%emt 0:04:30]} 15. Nd1 {[%emt 0:04:30]} b4 {[%emt 0:06:30]} 16. e5 {[%emt 0:09:30]} Nec6 {[%emt 0:09:30]} 17. exd6 {[%emt 0:13:30]} Qxd6 {[%emt 0:00:30]} 18. g5 {[%emt 0:04:30]} Rd8 {[%emt 0:00:30]} 19. Qf2 {[%emt 0:04:30]} Bb7 {[%emt 0:09:30]} 20. Rb1 {[%emt 0:03:30]} b3 {[%emt 0:09:30]} 21. cxb3 {[%emt 0:07:30]} Ba6 {[%emt 0:03:30]} ({Don't play} 21... Nxb3 22. Nc3 $19) 22. Ne1 $19 {[%emt 0:03:30]} Nb4 {[%emt 0:01:30]} 23. Rc1 {[%emt 0:03:30]} Bxd3 {[%emt 0:02:30]} 24. Nc3 {[%emt 0:02:30]} Bxf1 {[%emt 0:00:30]} 25. Qxf1 {[%emt 0:00:30]} Nxb3 {[%emt 0:02:30]} 26. Rb1 {[%emt 0:02:30]} Nd5 {[%emt 0:00:30]} 27. Nxd5 {[%emt 0:02:30]} exd5 {[%emt 0:00:30]} 28. Nd3 {[%emt 0:01:30]} d4 {[%emt 0:00:30]} 29. Bf2 {[%emt 0:00:30]} Nd2 {[%emt 0:00:00]} 0-1

[Event "TUR-ch Youth U14 2019"]
[Site "Belek"]
[Date "2019.01.21"]
[Round "3"]
[White "Yaman, Sila"]
[Black "Tokat, Nehir"]
[Result "1-0"]
[ECO "B23"]
[WhiteElo "1405"]
[BlackElo "1665"]
[Annotator "NA"]
[PlyCount "101"]
[EventDate "2019.01.20"]
[EventType "swiss"]
[EventCountry "TUR"]
[SourceTitle "playchess.com"]
[Source "ChessBase"]
[SourceQuality "1"]
[TimeControl "5400+30"]

1. e4 {[%emt 0:00:30]} c5 {[%emt 0:00:30]} 2. Nc3 {[%emt 0:00:30]} Nc6 {[%emt 0:00:30]} 3. f4 {[%emt 0:00:30]} g6 {[%emt 0:00:30]} 4. Nf3 {[%emt 0:00:30]} Bg7 {[%emt 0:00:30]} 5. Bb5 {[%emt 0:00:00]} e6 {[%emt 0:00:30]} 6. Bxc6 {[%emt 0:01:00]} dxc6 {[%emt 0:04:30]} 7. d3 {[%emt 0:01:30]} Ne7 {[%emt 0:02:30]} 8. O-O {[%emt 0:01:30]} O-O {[%emt 0:03:30]} 9. e5 {[%emt 0:03:30]} b6 {[%emt 0:06:30]} 10. Ne4 {[%emt 0:04:30]} Ba6 {[%emt 0:03:30]} 11. b3 {[%emt 0:01:30]} Nd5 {[%emt 0:11:30]} 12. Qe1 {[%emt 0:06:30]} Nb4 {[%emt 0:05:30]} 13. Rf2 {[%emt 0:03:30]} Nd5 {[%emt 0:23:30]} 14. Nfd2 {[%emt 0:08:30]} Nxf4 {[%emt 0:14:03]} 15. Bb2 {[%emt 0:07:30]} Bh6 {[%emt 0:02:46]} 16. Nf6+ {[%emt 0:02:30]} Kg7 {[%emt 0:00:58]} 17. Nc4 {[%emt 0:03:30]} Nd5 {[%emt 0:01:56]} 18. Rf3 {[%emt 0:02:30]} Rh8 {[%emt 0:04:53]} 19. Qh4 {[%emt 0:01:30]} Bxc4 {[%emt 0:03:20]} 20. bxc4 {[%emt 0:01:30]} Ne3 {[%emt 0:01:53]} 21. g4 {[%emt 0:03:30]} Nxc2 {[%emt 0:01:27]} 22. g5 {[%emt 0:02:30]} Bxg5 {[%emt 0:01:06]} 23. Qxg5 {[%emt 0:00:00]} Nxa1 {[%emt 0:00:52]} 24. Bxa1 {[%emt 0:00:00]} h6 {[%emt 0:01:21]} 25. Qf4 {[%emt 0:00:30]} Qe7 {[%emt 0:01:02]} 26. Bc3 {[%emt 0:02:30]} b5 {[%emt 0:01:22]} 27. Kf2 {[%emt 0:06:30]} a5 {[%emt 0:01:02]} 28. Ne4 {[%emt 0:00:30]} b4 {[%emt 0:01:19]} 29. Bd2 {[%emt 0:01:30]} a4 {[%emt 0:00:39]} 30. Qf6+ {[%emt 0:02:30]} Qxf6 {[%emt 0:00:30]} 31. exf6+ {[%emt 0:00:00]} Kf8 {[%emt 0:00:53]} 32. Nxc5 {[%emt 0:01:00]} Ke8 {[%emt 0:00:31]} 33. Bxb4 {[%emt 0:00:30]} Rh7 {[%emt 0:00:31]} 34. d4 {[%emt 0:00:30]} h5 {[%emt 0:00:25]} 35. Ra3 {[%emt 0:00:30]} h4 {[%emt 0:00:26]} 36. Rxa4 {[%emt 0:00:00]} Rxa4 {[%emt 0:00:19]} 37. Nxa4 {[%emt 0:00:00]} Rh5 {[%emt 0:00:24]} 38. Be7 {[%emt 0:01:30]} Rg5 {[%emt 0:00:33]} 39. Nc3 {[%emt 0:01:30]} h3 {[%emt 0:00:42]} 40. Ke3 {[%emt 0:00:30]} Kd7 {[%emt 0:00:35]} 41. Ne4 {[%emt 0:01:30]} Rg2 {[%emt 0:00:27]} 42. Bd6 {[%emt 0:00:30]} Rxa2 {[%emt 0:00:16]} 43. Be5 {[%emt 0:00:30]} Ra4 {[%emt 0:00:49]} 44. Nd6 {[%emt 0:00:30]} Rb4 {[%emt 0:00:32]} 45. c5 {[%emt 0:00:30]} Rb3+ {[%emt 0:00:29]} 46. Kf4 {[%emt 0:00:30]} Ra3 {[%emt 0:00:32]} 47. Kg4 {[%emt 0:00:30]} Rb3 {[%emt 0:00:32]} 48. Nxf7 {[%emt 0:00:30]} Ke8 {[%emt 0:00:21]} 49. Ng5 {[%emt 0:00:00]} Kf8 {[%emt 0:00:37]} 50. Bd6+ {[%emt 0:00:00]} Ke8 {[%emt 0:00:25]} 51. f7+ {[%emt 0:00:30]} 1-0

[Event "TUR-ch Youth U14 2019"]
[Site "Belek"]
[Date "2019.01.22"]
[Round "4"]
[White "Ince, Safiye Oyku"]
[Black "Tikvesli, Ceylin"]
[Result "1-0"]
[ECO "B50"]
[WhiteElo "1870"]
[BlackElo "1677"]
[Annotator "NA RC"]
[PlyCount "67"]
[EventDate "2019.01.20"]
[EventType "swiss"]
[EventCountry "TUR"]
[SourceTitle "playchess.com"]
[Source "ChessBase"]
[SourceQuality "1"]
[TimeControl "5400+30"]

1. e4 c5 2. Nf3 d6 3. c3 Nf6 4. h3 Nc6 5. Bd3 d5 6. e5 Nd7 7. Qe2 e6 8. O-O Qc7 9. Re1 b6 10. Bc2 a5 11. Na3 Ba6 12. Nb5 Qb8 13. a4 Be7 14. d4 Na7 15. Bg5 Bxb5 16. axb5 c4 17. Bxe7 Kxe7 18. b3 Rc8 19. Rac1 Nxb5 20. bxc4 dxc4 21. Ba4 Na7 22. Bxd7 Kxd7 23. d5 Ke7 24. dxe6 fxe6 25. Qe4 {[%emt 0:55:30]} Nc6 {[%emt 1:14:30]} 26. Qxh7 {[%emt 0:02:30]} Rg8 {[%emt 0:00:30]} 27. Rcd1 {[%emt 0:00:30]} Ra7 {[%emt 0:04:30]} 28. Qh4+ {[%emt 0:03:30]} Ke8 {[%emt 0:00:30]} 29. Rd6 {[%emt 0:00:30]} Nd8 {[%emt 0:00:30]} 30. Red1 {[%emt 0:00:30]} Re7 {[%emt 0:00:30]} 31. Rxd8+ {[%emt 0:01:30]} Qxd8 {[%emt 0:00:30]} 32. Rxd8+ {[%emt 0:00:30]} Kxd8 {[%emt 0:00:00]} 33. Qxc4 {[%emt 0:00:30]} Rge8 {[%emt 0:00:00]} 34. Nd4 {[%emt 0:00:30]} 1-0

[Event "TUR-ch Youth U14 2019"]
[Site "Belek"]
[Date "2019.01.22"]
[Round "4"]
[White "Bicer, Atakan Mert"]
[Black "Uysal, Ugur"]
[Result "1/2-1/2"]
[ECO "A16"]
[WhiteElo "1854"]
[BlackElo "1585"]
[Annotator "NA"]
[PlyCount "150"]
[EventDate "2019.01.20"]
[EventType "swiss"]
[EventCountry "TUR"]
[SourceTitle "playchess.com"]
[Source "ChessBase"]
[SourceQuality "1"]
[TimeControl "5400+30"]

1. c4 Nf6 2. Nc3 g6 3. g3 Bg7 4. Bg2 O-O 5. e4 d6 6. Nge2 c6 7. O-O Nbd7 8. Rb1 a5 9. b3 Qc7 10. Bb2 Re8 11. d4 e5 12. d5 Rb8 13. Bc1 Nb6 14. h3 Bd7 15. Be3 c5 16. a4 Nh5 17. Qd2 f5 18. Rbe1 Nf6 19. exf5 gxf5 20. f4 e4 21. Nd1 Kf7 22. Bf2 h5 23. Ne3 Re7 24. Nc3 Rg8 {[%emt 0:59:00]} 25. Kh2 {[%emt 1:08:30]} Nc8 {[%emt 0:08:30]} 26. Rg1 {[%emt 0:02:30]} Bh6 {[%emt 0:01:30]} 27. Ne2 {[%emt 0:07:30]} Qd8 {[%emt 0:01:30]} 28. Bh1 {[%emt 0:01:30]} Rg6 {[%emt 0:01:30]} 29. Ng2 {[%emt 0:00:30]} Qe8 {[%emt 0:01:30]} 30. Nc3 {[%emt 0:01:30]} Qh8 {[%emt 0:05:30]} 31. Nh4 {[%emt 0:00:30]} Rg8 {[%emt 0:00:30]} 32. Nd1 {[%emt 0:00:30]} b6 {[%emt 0:00:00]} 33. Ne3 {[%emt 0:00:30]} Qh7 {[%emt 0:00:00]} 34. Qe2 {[%emt 0:00:30]} Ree8 {[%emt 0:03:30]} 35. Ref1 {[%emt 0:01:30]} Ne7 {[%emt 0:02:30]} 36. Be1 {[%emt 0:01:30]} Rd8 {[%emt 0:05:45]} 37. Rf2 {[%emt 0:04:29]} Rde8 {[%emt 0:03:16]} 38. Bg2 {[%emt 0:01:11]} Rd8 {[%emt 0:03:13]} 39. Bf1 {[%emt 0:00:14]} Rc8 {[%emt 0:01:02]} 40. Qd1 {[%emt 0:00:37]} Bg7 {[%emt 0:01:35]} 41. Be2 {[%emt 0:00:56]} Rh8 {[%emt 0:00:31]} 42. Kg2 {[%emt 0:00:59]} Rcg8 {[%emt 0:00:45]} 43. Kf1 {[%emt 0:00:06]} Bc8 {[%emt 0:01:18]} 44. Rfg2 {[%emt 0:01:34]} Qh6 {[%emt 0:00:07]} 45. Bd2 {[%emt 0:00:30]} Bd7 {[%emt 0:00:05]} 46. Qe1 {[%emt 0:00:00]} Bc8 {[%emt 0:00:38]} 47. Qf2 {[%emt 0:00:04]} Bd7 {[%emt 0:01:22]} 48. Ke1 {[%emt 0:00:09]} Bc8 {[%emt 0:00:09]} 49. Kd1 {[%emt 0:00:06]} Bd7 {[%emt 0:00:03]} 50. Kc2 {[%emt 0:00:16]} Rh7 {[%emt 0:02:03]} 51. Rh2 {[%emt 0:02:24]} Rgh8 {[%emt 0:02:14]} 52. Be1 {[%emt 0:01:24]} Ne8 {[%emt 0:01:05]} 53. Nhg2 {[%emt 0:06:03]} Qf6 {[%emt 0:00:48]} 54. Nd1 {[%emt 0:00:38]} Qg6 {[%emt 0:02:28]} 55. Bc3 {[%emt 0:00:35]} Bxc3 {[%emt 0:00:01]} 56. Nxc3 {[%emt 0:00:17]} Nc7 {[%emt 0:00:53]} 57. Ne3 {[%emt 0:00:39]} Qf6 {[%emt 0:00:24]} 58. Rhg2 {[%emt 0:00:45]} Ng6 {[%emt 0:00:47]} 59. Rf1 {[%emt 0:01:52]} Qd4 {[%emt 0:00:44]} 60. Rd1 {[%emt 0:00:21]} Qf6 {[%emt 0:00:25]} 61. Rgg1 {[%emt 0:00:11]} Ke8 {[%emt 0:00:11]} 62. g4 {[%emt 0:03:06]} hxg4 {[%emt 0:00:30]} 63. hxg4 {[%emt 0:00:03]} Rh2 {[%emt 0:00:00]} 64. Rg2 {[%emt 0:00:21]} Rxg2 {[%emt 0:00:51]} 65. Nxg2 {[%emt 0:00:08]} fxg4 {[%emt 0:00:24]} 66. Nxe4 {[%emt 0:00:14]} Bf5 {[%emt 0:00:19]} 67. Bd3 {[%emt 0:00:47]} Bxe4 {[%emt 0:00:06]} 68. Bxe4 {[%emt 0:01:43]} Kd8 {[%emt 0:00:10]} 69. Bxg6 {[%emt 0:01:22]} Qxg6+ {[%emt 0:00:30]} 70. f5 {[%emt 0:00:00]} Qf6 {[%emt 0:00:34]} 71. Qf4 {[%emt 0:00:46]} Rg8 {[%emt 0:00:14]} 72. Rh1 {[%emt 0:00:28]} Ne8 {[%emt 0:00:42]} 73. Ne3 {[%emt 0:01:15]} Qg5 {[%emt 0:03:19]} 74. Qg3 {[%emt 0:01:26]} Kd7 {[%emt 0:01:02]} 75. Rh7+ {[%emt 0:01:13]} Rg7 {[%emt 0:00:00]} 1/2-1/2

[Event "TUR-ch Youth U14 2019"]
[Site "Belek"]
[Date "2019.01.22"]
[Round "4"]
[White "Kavri, Yusuf Eren"]
[Black "Basara, Arda"]
[Result "1/2-1/2"]
[ECO "D35"]
[WhiteElo "1761"]
[BlackElo "1737"]
[Annotator "NA"]
[PlyCount "98"]
[EventDate "2019.01.20"]
[EventType "swiss"]
[EventCountry "TUR"]
[SourceTitle "playchess.com"]
[Source "ChessBase"]
[SourceQuality "1"]
[TimeControl "5400+30"]

1. d4 d5 2. c4 c6 3. Nf3 Nf6 4. Nc3 e6 5. Bg5 Be7 6. e3 Nbd7 7. cxd5 exd5 8. Bd3 O-O 9. O-O Ne4 10. Bxe4 Bxg5 11. Bd3 Be7 12. Qc2 g6 13. Rab1 a5 14. a3 f5 15. b4 axb4 16. axb4 b5 17. Ne2 Bb7 {[%emt 1:09:30]} 18. Nf4 {[%emt 1:06:00]} Qb8 {[%emt 0:01:30]} 19. Ne6 {[%emt 0:08:30]} Rf6 {[%emt 0:01:30]} 20. Nc5 {[%emt 0:02:30]} Bxc5 {[%emt 0:01:30]} 21. dxc5 {[%emt 0:02:30]} Ne5 {[%emt 0:02:30]} 22. Nd4 {[%emt 0:04:07]} Bc8 {[%emt 0:02:30]} 23. Ra1 {[%emt 0:01:26]} Bd7 {[%emt 0:00:30]} 24. g3 {[%emt 0:03:40]} Rf8 {[%emt 0:02:30]} 25. Qc3 {[%emt 0:01:33]} Qc7 {[%emt 0:00:30]} 26. Kg2 {[%emt 0:01:45]} h6 {[%emt 0:01:55]} 27. Be2 {[%emt 0:01:19]} Kh7 {[%emt 0:00:33]} 28. Ra3 {[%emt 0:01:13]} Rxa3 {[%emt 0:08:01]} 29. Qxa3 {[%emt 0:00:02]} g5 {[%emt 0:00:33]} 30. Ra1 {[%emt 0:03:12]} f4 {[%emt 0:01:12]} 31. Qa7 {[%emt 0:01:47]} Qc8 {[%emt 0:00:00]} 32. exf4 {[%emt 0:03:24]} gxf4 {[%emt 0:02:14]} 33. f3 {[%emt 0:00:48]} Rf7 {[%emt 0:01:50]} 34. Qa8 {[%emt 0:00:52]} Bh3+ {[%emt 0:00:31]} 35. Kg1 {[%emt 0:00:20]} fxg3 {[%emt 0:01:24]} 36. Qxc8 {[%emt 0:02:37]} gxh2+ {[%emt 0:00:01]} 37. Kxh2 {[%emt 0:00:00]} Bxc8 {[%emt 0:00:01]} 38. Ra8 {[%emt 0:00:26]} Bd7 {[%emt 0:01:37]} 39. Kg3 {[%emt 0:00:35]} Kg6 {[%emt 0:02:31]} 40. Ra6 {[%emt 0:00:31]} Rf6 {[%emt 0:00:58]} 41. f4 {[%emt 0:00:31]} Nc4 {[%emt 0:01:20]} 42. Bd3+ {[%emt 0:00:11]} Kf7 {[%emt 0:00:50]} 43. Ra7 {[%emt 0:00:52]} Ke8 {[%emt 0:00:02]} 44. f5 {[%emt 0:00:26]} Ne5 {[%emt 0:00:47]} 45. Bc2 {[%emt 0:00:31]} Nf7 {[%emt 0:00:27]} 46. Ra6 {[%emt 0:00:32]} Ke7 {[%emt 0:00:38]} 47. Ra7 {[%emt 0:00:23]} Ke8 {[%emt 0:00:43]} 48. Ra6 {[%emt 0:00:30]} Ke7 {[%emt 0:00:00]} 49. Ra7 {[%emt 0:00:00]} Ke8 {[%emt 0:01:25]} 1/2-1/2

[Event "TUR-ch Youth U14 2019"]
[Site "Belek"]
[Date "2019.01.22"]
[Round "4"]
[White "Ozsac, Samet Harun"]
[Black "Danaci, Ege"]
[Result "1-0"]
[ECO "B30"]
[WhiteElo "1743"]
[BlackElo "2143"]
[Annotator "NA"]
[PlyCount "103"]
[EventDate "2019.01.20"]
[EventType "swiss"]
[EventCountry "TUR"]
[SourceTitle "playchess.com"]
[Source "ChessBase"]
[SourceQuality "1"]
[TimeControl "5400+30"]

1. e4 c5 2. Nf3 Nc6 3. Bb5 e6 4. O-O Nge7 5. c3 a6 6. Ba4 b5 7. Bc2 Bb7 8. d4 cxd4 9. Nxd4 Ng6 10. Be3 Qc7 11. Nd2 Bd6 12. h3 Bh2+ 13. Kh1 Bf4 14. Bxf4 Nxf4 15. N2f3 O-O 16. Ne2 Rac8 {[%emt 0:47:00]} 17. Nxf4 {[%emt 1:17:30]} Qxf4 {[%emt 0:00:30]} 18. Qxd7 {[%emt 0:00:30]} Rc7 {[%emt 0:04:30]} 19. Qd3 {[%emt 0:08:44]} Rfc8 {[%emt 0:02:30]} 20. Rad1 {[%emt 0:06:14]} g6 {[%emt 0:00:30]} 21. Bb1 {[%emt 0:00:14]} Na5 {[%emt 0:07:30]} 22. Qe2 {[%emt 0:05:53]} Nc4 {[%emt 0:00:30]} 23. Rfe1 {[%emt 0:00:36]} a5 {[%emt 0:01:30]} 24. Nd4 {[%emt 0:00:59]} Rc5 {[%emt 0:04:30]} 25. Nb3 {[%emt 0:01:04]} Rh5 {[%emt 0:01:30]} 26. Rd7 {[%emt 0:00:40]} Bc6 {[%emt 0:00:30]} 27. Rd3 {[%emt 0:00:27]} Ne5 {[%emt 0:00:00]} 28. Rg3 {[%emt 0:00:21]} Rh4 {[%emt 0:06:00]} 29. Nd4 {[%emt 0:00:33]} Bb7 {[%emt 0:07:30]} 30. Kg1 {[%emt 0:00:31]} b4 {[%emt 0:00:30]} 31. cxb4 {[%emt 0:00:39]} axb4 {[%emt 0:00:30]} 32. Nf3 {[%emt 0:00:24]} Nxf3+ {[%emt 0:03:05]} 33. Rxf3 {[%emt 0:00:43]} Qg5 {[%emt 0:00:02]} 34. Rg3 {[%emt 0:00:13]} Qh6 {[%emt 0:00:39]} 35. Qe3 {[%emt 0:00:37]} Qg7 {[%emt 0:04:11]} 36. Qb6 {[%emt 0:00:32]} Qxb2 {[%emt 0:00:44]} 37. Qxb7 {[%emt 0:00:24]} Rc1 {[%emt 0:00:03]} 38. Rxc1 {[%emt 0:01:04]} Qxc1+ {[%emt 0:00:30]} 39. Kh2 {[%emt 0:00:00]} Qxb1 {[%emt 0:00:00]} 40. Qb8+ {[%emt 0:00:19]} Kg7 {[%emt 0:00:26]} 41. Qe5+ {[%emt 0:00:30]} f6 {[%emt 0:00:33]} 42. Qxe6 {[%emt 0:00:45]} Rxe4 {[%emt 0:00:30]} 43. Qd7+ {[%emt 0:00:24]} Kh6 {[%emt 0:01:40]} 44. Qd2+ {[%emt 0:00:34]} g5 {[%emt 0:00:50]} 45. Rb3 {[%emt 0:00:25]} Qa1 {[%emt 0:00:30]} 46. Rxb4 {[%emt 0:00:58]} Qe5+ {[%emt 0:00:03]} 47. g3 {[%emt 0:00:15]} Re2 {[%emt 0:00:01]} 48. Rh4+ {[%emt 0:00:00]} Kg7 {[%emt 0:06:36]} 49. Qd7+ {[%emt 0:01:02]} Kf8 {[%emt 0:00:02]} 50. Qd8+ {[%emt 0:00:35]} Kf7 {[%emt 0:00:30]} 51. Qd7+ {[%emt 0:00:15]} Kg6 {[%emt 0:00:02]} 52. Qxh7# {[%emt 0:00:00]} 1-0

[Event "TUR-ch Youth U14 2019"]
[Site "Belek"]
[Date "2019.01.22"]
[Round "4"]
[White "Tokat, Nehir"]
[Black "Kara, Gulce Nehir"]
[Result "1/2-1/2"]
[ECO "E04"]
[WhiteElo "1665"]
[BlackElo "1702"]
[Annotator "NA"]
[PlyCount "141"]
[EventDate "2019.01.20"]
[EventType "swiss"]
[EventCountry "TUR"]
[SourceTitle "playchess.com"]
[Source "ChessBase"]
[SourceQuality "1"]
[TimeControl "5400+30"]

1. d4 d5 2. c4 e6 3. Nf3 Nf6 4. g3 dxc4 5. Bg2 Bd7 6. Ne5 Bc6 7. Nxc6 Nxc6 8. e3 Be7 9. O-O Qd7 10. Qc2 b5 11. a4 Nb4 12. Qe2 Nfd5 13. axb5 Nd3 14. Qc2 Qxb5 15. Nd2 N3b4 16. Qxc4 Qxc4 17. Nxc4 c5 18. e4 Nf6 19. d5 exd5 {[%emt 1:03:30]} 20. exd5 {[%emt 1:00:00]} Nfxd5 {[%emt 0:00:30]} 21. Rd1 {[%emt 0:00:30]} Rd8 {[%emt 0:00:30]} 22. Rxa7 {[%emt 0:00:30]} O-O {[%emt 0:05:30]} 23. Ne5 {[%emt 0:04:30]} Rfe8 {[%emt 0:06:30]} 24. Rd7 {[%emt 0:12:30]} Rxd7 {[%emt 0:02:30]} 25. Nxd7 {[%emt 0:00:00]} Nf6 {[%emt 0:00:30]} 26. Be3 {[%emt 0:02:00]} Nxd7 {[%emt 0:05:35]} 27. Rxd7 {[%emt 0:00:30]} h6 {[%emt 0:05:12]} 28. Bf1 {[%emt 0:04:00]} Nc2 {[%emt 0:01:24]} 29. Bf4 {[%emt 0:02:19]} Kf8 {[%emt 0:01:58]} 30. Bc4 {[%emt 0:03:03]} Ra8 {[%emt 0:02:58]} 31. Rb7 {[%emt 0:05:37]} f5 {[%emt 0:05:09]} 32. Be5 {[%emt 0:02:57]} g5 {[%emt 0:02:04]} 33. b3 {[%emt 0:01:13]} Rd8 {[%emt 0:00:27]} 34. h3 {[%emt 0:03:34]} Nd4 {[%emt 0:00:54]} 35. Kg2 {[%emt 0:00:46]} Nc6 {[%emt 0:00:43]} 36. Bc3 {[%emt 0:01:21]} Nd4 {[%emt 0:00:30]} 37. Rb6 {[%emt 0:00:39]} Bd6 {[%emt 0:01:03]} 38. Rb7 {[%emt 0:00:34]} Be7 {[%emt 0:00:22]} 39. Ba5 {[%emt 0:00:46]} Rc8 {[%emt 0:00:29]} 40. Bb6 {[%emt 0:00:46]} f4 {[%emt 0:00:45]} 41. gxf4 {[%emt 0:00:55]} gxf4 {[%emt 0:00:01]} 42. Bd5 {[%emt 0:00:00]} Nf5 {[%emt 0:01:13]} 43. Be6 {[%emt 0:01:51]} Nh4+ {[%emt 0:00:01]} 44. Kf1 {[%emt 0:00:18]} Ra8 {[%emt 0:00:35]} 45. Ba7 {[%emt 0:00:21]} Rd8 {[%emt 0:00:21]} 46. Rd7 {[%emt 0:00:49]} Rxd7 {[%emt 0:01:15]} 47. Bxd7 {[%emt 0:00:02]} Bd6 {[%emt 0:00:00]} 48. Ke2 {[%emt 0:01:05]} Ke7 {[%emt 0:00:00]} 49. Bc6 {[%emt 0:00:00]} Ng6 {[%emt 0:00:58]} 50. Bb6 {[%emt 0:00:29]} Ne5 {[%emt 0:00:10]} 51. Be4 {[%emt 0:00:40]} Ke6 {[%emt 0:01:07]} 52. Ba5 {[%emt 0:00:20]} Nf7 {[%emt 0:00:30]} 53. Bc3 {[%emt 0:00:48]} Ng5 {[%emt 0:00:32]} 54. Bb7 {[%emt 0:00:33]} Be5 {[%emt 0:00:34]} 55. Bc8+ {[%emt 0:00:37]} Kd5 {[%emt 0:00:29]} 56. Bxe5 {[%emt 0:00:55]} Kxe5 {[%emt 0:00:01]} 57. Bg4 {[%emt 0:00:02]} Kd4 {[%emt 0:00:54]} 58. h4 {[%emt 0:00:33]} Ne4 {[%emt 0:00:33]} 59. Be6 {[%emt 0:00:29]} Ke5 {[%emt 0:00:28]} 60. Bf7 {[%emt 0:00:29]} Nd6 {[%emt 0:00:36]} 61. Bg6 {[%emt 0:00:32]} Nb5 {[%emt 0:00:35]} 62. Kd3 {[%emt 0:00:30]} Nd6 {[%emt 0:00:16]} 63. Ke2 {[%emt 0:00:26]} Nb5 {[%emt 0:00:43]} 64. Kd3 {[%emt 0:00:20]} Nd6 {[%emt 0:00:07]} 65. Ke2 {[%emt 0:00:34]} Kf6 {[%emt 0:00:33]} 66. h5 {[%emt 0:00:23]} Nb5 {[%emt 0:00:37]} 67. Kd3 {[%emt 0:00:24]} Nd6 {[%emt 0:00:35]} 68. Ke2 {[%emt 0:00:34]} Ke5 {[%emt 0:00:26]} 69. Kd3 {[%emt 0:00:47]} Kd5 {[%emt 0:00:30]} 70. Bh7 {[%emt 0:00:26]} Ke5 {[%emt 0:00:13]} 71. Bg6 {[%emt 0:00:08]} 1/2-1/2

[Event "TUR-ch Youth U14 2019"]
[Site "Belek"]
[Date "2019.01.22"]
[Round "4"]
[White "Bozyaka, Altug"]
[Black "Ozcan, Ilker"]
[Result "1/2-1/2"]
[ECO "D03"]
[WhiteElo "1600"]
[BlackElo "1672"]
[Annotator "NA"]
[PlyCount "85"]
[EventDate "2019.01.20"]
[EventType "swiss"]
[EventCountry "TUR"]
[SourceTitle "playchess.com"]
[Source "ChessBase"]
[SourceQuality "1"]
[TimeControl "5400+30"]

1. d4 Nf6 2. Nf3 g6 3. Bg5 Bg7 4. Nbd2 d5 5. c3 O-O 6. b4 Nbd7 7. e3 Re8 8. Be2 e5 9. O-O h6 10. Bh4 c6 11. Qb3 e4 12. Ne1 g5 13. Bg3 Nf8 14. c4 Ng6 15. Rc1 dxc4 16. Bxc4 Be6 17. b5 Bd5 18. Nc2 cxb5 19. Qxb5 a6 20. Qb1 b5 21. Bxd5 Nxd5 22. Nb4 Nxb4 23. Qxb4 Qd5 24. Rc2 Bf8 25. Qb3 {[%emt 1:18:30]} Qxb3 {[%emt 0:45:30]} 26. Nxb3 {[%emt 0:00:30]} f5 {[%emt 0:00:30]} 27. Bc7 {[%emt 0:00:30]} Ne7 {[%emt 0:01:30]} 28. Bd6 {[%emt 0:05:29]} Nd5 {[%emt 0:05:30]} 29. Bxf8 {[%emt 0:04:52]} Rxf8 {[%emt 0:00:00]} 30. Rc6 {[%emt 0:03:14]} Kg7 {[%emt 0:07:00]} 31. Rfc1 {[%emt 0:02:46]} Nb4 {[%emt 0:03:30]} 32. Rc7+ {[%emt 0:01:13]} Kg6 {[%emt 0:01:30]} 33. a3 {[%emt 0:01:04]} Nd5 {[%emt 0:00:30]} 34. R7c6+ {[%emt 0:02:09]} Rf6 {[%emt 0:01:30]} 35. Kf1 Raf8 {[%emt 0:01:30]} 36. R1c5 {[%emt 0:03:55]} Rxc6 {[%emt 0:00:30]} 37. Rxc6+ {[%emt 0:00:42]} Rf6 {[%emt 0:00:30]} 38. Rc5 {[%emt 0:01:19]} Rd6 {[%emt 0:00:30]} 39. Ke2 {[%emt 0:00:30]} b4 {[%emt 0:01:30]} 40. axb4 {[%emt 0:01:11]} Nxb4 {[%emt 0:00:00]} 41. Ra5 {[%emt 0:00:48]} Rb6 {[%emt 0:03:00]} 42. Nc5 {[%emt 0:00:28]} Rb5 {[%emt 0:05:30]} 43. Nb3 {[%emt 0:01:45]} 1/2-1/2

[Event "TUR-ch Youth U14 2019"]
[Site "Belek"]
[Date "2019.01.22"]
[Round "4"]
[White "Eraslan, Yagmur"]
[Black "Yaman, Sila"]
[Result "1-0"]
[ECO "B27"]
[WhiteElo "1567"]
[BlackElo "1405"]
[Annotator "NA RC"]
[PlyCount "79"]
[EventDate "2019.01.20"]
[EventType "swiss"]
[EventCountry "TUR"]
[SourceTitle "playchess.com"]
[Source "ChessBase"]
[SourceQuality "1"]
[TimeControl "5400+30"]

1. e4 c5 2. Nf3 g6 3. d4 cxd4 4. Qxd4 Nf6 5. Nc3 Nc6 6. Qa4 d6 7. e5 dxe5 8. Nxe5 Bd7 9. Nxd7 Qxd7 10. Be3 Bg7 11. Rd1 Qc7 12. g3 O-O 13. Bg2 a6 14. a3 Rfd8 15. O-O e6 16. Qb3 Rxd1 17. Rxd1 Rc8 18. Qb6 Qxb6 19. Bxb6 Kf8 20. Na4 Ng4 21. h3 Nge5 22. b3 Ke8 23. Nc5 Bf8 24. Nxb7 Bxa3 {[%emt 1:05:00]} 25. c4 {[%emt 1:00:30]} Nd7 {[%emt 0:04:30]} 26. Be3 {[%emt 0:00:30]} Bb4 {[%emt 0:02:30]} 27. Bd2 {[%emt 0:06:30]} Be7 {[%emt 0:03:30]} 28. Bc3 {[%emt 0:07:30]} Nc5 {[%emt 0:04:30]} 29. Nxc5 {[%emt 0:03:30]} Bxc5 {[%emt 0:00:00]} 30. Ra1 {[%emt 0:00:30]} Nd4 {[%emt 0:02:00]} 31. Bxd4 {[%emt 0:00:30]} Bxd4 {[%emt 0:00:30]} 32. Rxa6 {[%emt 0:00:30]} Rb8 {[%emt 0:00:30]} 33. Bc6+ {[%emt 0:00:30]} Ke7 {[%emt 0:00:30]} 34. Bb5 {[%emt 0:00:30]} Bc5 {[%emt 0:01:30]} 35. Rc6 {[%emt 0:01:30]} Bd6 {[%emt 0:00:30]} 36. Ba4 {[%emt 0:01:30]} Rb7 {[%emt 0:01:30]} 37. g4 {[%emt 0:00:30]} f5 {[%emt 0:01:30]} 38. Rc8 {[%emt 0:01:30]} e5 {[%emt 0:00:30]} 39. c5 {[%emt 0:01:30]} Bc7 {[%emt 0:00:47]} 40. Rh8 {[%emt 0:01:30]} 1-0